bitfinex/quotes_ETHUSD_20220218
["timestamp","ask_amount","ask_price","bid_price","bid_amount"]
[1645208318517,0.02731527,2756.6,2756.1,0.18385662]
[1645208318720,0.02731527,2756.6,2756.1,0.1812]
[1645208323009,0.0027003,2756.7,2756.1,0.1812]
[1645208323211,0.00669419,2757.0,2756.2,0.01374981]
[1645208323612,0.00269265,2756.7,2756.2,0.01374981]
[1645208324210,0.00669419,2757.0,2756.2,0.01374981]
[1645208324510,0.00269274,2756.7,2756.2,0.01374981]
[1645208325512,0.91420419,2757.0,2756.2,0.01374981]
[1645208325513,0.00669419,2757.0,2756.2,0.01374981]
[1645208325715,0.00269274,2756.7,2756.3,0.54198171]
[1645208326110,0.00269274,2756.7,2756.2,0.01374981]
[1645208326869,0.00669419,2757.0,2756.3,0.9073542]
[1645208327064,0.00269274,2756.7,2756.3,0.9073542]
[1645208327667,0.00269274,2756.7,2756.4,2.02288845]
[1645208327865,0.00669419,2757.0,2756.5,1.95868845]
[1645208328067,0.00669419,2757.0,2756.6,0.1812]
[1645208328269,0.00269386,2756.7,2756.6,0.1812]
[1645208328465,0.00269386,2756.7,2756.6,1.54157608]
[1645208328666,0.00269386,2756.7,2756.4,0.1812]
[1645208328868,0.00269386,2756.7,2756.3,0.01716361]
[1645208329065,0.00669419,2757.0,2756.3,0.01716361]
[1645208329266,0.00669419,2757.0,2756.4,1.5416676]
[1645208329470,0.00669419,2757.0,2756.4,4.2632621]
[1645208329666,0.0026939,2756.7,2756.5,3.0470276]
[1645208329870,0.00669419,2757.0,2756.9,0.00358266]
[1645208330140,0.00669419,2757.0,2756.9,0.60178266]
[1645208330341,0.00669419,2757.0,2756.9,1.20149635]
[1645208330539,0.00669419,2757.0,2756.9,3.04316395]
[1645208330733,3.5,2758.4,2757.0,2.5]
[1645208330941,3.5,2758.5,2757.1,2.4486076]
[1645208331143,0.88706847,2758.6,2757.2,1.8416676]
[1645208331339,3.5,2758.7,2757.3,1.95823233]
[1645208331541,3.5,2758.7,2757.4,1.54123233]
[1645208331542,3.6812,2758.7,2757.4,1.54123233]
[1645208331743,0.59214492,2758.5,2757.7,0.90681]
[1645208332140,0.59214492,2758.5,2757.6,1.8136433]
[1645208332940,0.00269367,2758.2,2757.6,1.8136433]
[1645208333546,0.00269367,2758.2,2757.7,0.9069]
[1645208333741,0.00269367,2758.2,2757.8,0.906874]
[1645208333962,0.88706847,2758.9,2757.8,0.906874]
[1645208334163,0.00269367,2758.1,2757.8,0.906874]
[1645208335166,0.71480392,2758.7,2757.8,0.906874]
[1645208335369,1.60187239,2758.7,2757.8,0.906874]
[1645208335565,0.00269341,2758.1,2757.8,0.906874]
[1645208335970,0.00269341,2758.1,2757.4,2.712]
[1645208336570,0.00269341,2758.1,2757.4,3.26759081]
[1645208336768,0.00269341,2758.1,2757.4,2.712]
[1645208336971,0.90713,2758.0,2757.4,2.712]
[1645208337173,0.90713,2758.0,2757.0,1.2063]
[1645208337369,0.90713,2758.0,2756.8,0.57112234]
[1645208337624,0.90713,2758.0,2756.9,1.09188386]
[1645208337815,0.69378811,2758.0,2757.8,0.01783716]
[1645208338017,0.1812,2758.3,2757.8,0.01783716]
[1645208338216,0.1812,2758.7,2757.8,0.01783716]
[1645208338620,0.90695,2758.6,2757.8,0.01783716]
[1645208339018,0.00255358,2758.4,2757.8,0.01783716]
[1645208340116,0.88706847,2759.2,2757.8,0.01783716]
[1645208340117,0.1812,2759.2,2757.8,0.92466306]
[1645208340317,2.54706847,2759.3,2757.8,1.22466306]
[1645208340318,0.00255359,2758.2,2757.8,1.22466306]
[1645208340518,0.00255359,2758.2,2757.9,15.78882571]
[1645208340717,0.00255359,2758.2,2758.1,0.3]
[1645208340917,0.00255359,2758.2,2758.1,2.43891066]
[1645208341121,0.00255359,2758.2,2758.1,2.73891066]
[1645208341373,0.00255359,2758.2,2758.1,4.36167134]
[1645208341570,0.00261791,2758.3,2758.2,1.8132348]
[1645208341767,0.00261791,2758.3,2758.2,3.4368548]
[1645208341967,0.00261791,2758.3,2758.2,5.6434748]
[1645208342367,1.7012929,2759.7,2758.2,5.6434748]
[1645208342567,1.7012929,2759.7,2758.3,0.3]
[1645208342568,0.00261841,2758.4,2758.3,0.3]
[1645208342768,0.00261841,2758.4,2758.3,1.017]
[1645208343166,0.00261841,2758.4,2758.3,2.017]
[1645208343570,0.1812,2759.9,2758.3,2.017]
[1645208343770,5.29356847,2760.1,2758.7,0.90644]
[1645208343771,0.1812,2760.0,2758.7,0.90644]
[1645208344072,0.1812,2760.0,2758.7,2.07991]
[1645208344270,1.06826847,2760.0,2758.7,2.07991]
[1645208344470,1.06826847,2760.0,2758.7,1.17344]
[1645208344672,3.82555732,2760.2,2758.7,1.17344]
[1645208344673,1.06826847,2760.1,2758.8,0.3]
[1645208344874,2.63966847,2760.2,2758.9,0.9064]
[1645208345144,2.63966847,2760.2,2758.7,0.1811]
[1645208345145,0.00269348,2759.5,2758.7,0.1811]
[1645208345325,0.9068507,2759.4,2758.1,0.00759257]
[1645208345525,0.1812,2759.3,2758.1,0.00759257]
[1645208345925,1.1812,2759.4,2758.1,0.00759257]
[1645208346126,0.63450444,2758.8,2758.1,0.00759257]
[1645208346327,0.63450444,2758.8,2757.8,1.1449]
[1645208346328,0.63450444,2758.8,2757.8,0.145041]
[1645208346329,0.63719782,2758.8,2757.8,0.145041]
[1645208346525,0.9071158,2758.5,2757.2,2.9199]
[1645208346728,13.51143782,2758.8,2756.9,1.24848266]
[1645208346729,0.1812,2758.4,2756.9,1.24848266]
[1645208346925,0.1812,2758.5,2756.9,1.24848266]
[1645208347225,0.02340886,2758.4,2756.9,1.24848266]
[1645208347427,0.00269343,2757.8,2757.3,0.66913144]
[1645208348226,0.84981343,2758.1,2757.3,0.66913144]
[1645208348427,1.11164886,2758.4,2757.3,0.66913144]
[1645208348629,0.00269344,2757.7,2757.3,0.96913144]
[1645208348860,0.00269344,2757.7,2757.3,0.66913144]
[1645208349661,0.02340886,2758.4,2757.3,1.57611914]
[1645208350461,0.93044886,2758.4,2757.3,0.66913144]
[1645208351061,0.02340886,2758.4,2757.3,0.66913144]
[1645208351868,0.02340886,2758.4,2757.3,1.57612024]
[1645208352069,5.49522,2758.8,2757.3,1.57612024]
[1645208352265,5.49522,2758.8,2757.8,0.62987506]
[1645208352266,0.00255652,2758.0,2757.8,0.62987506]
[1645208352909,0.00255652,2758.0,2757.5,0.01878927]
[1645208353309,3.69416098,2758.6,2757.5,0.01878927]
[1645208353509,0.00271795,2758.0,2757.5,0.01878927]
[1645208353909,0.00271795,2758.0,2757.6,0.59433902]
[1645208354313,0.90702,2758.4,2757.6,0.59433902]
[1645208354515,0.1812,2758.7,2757.6,1.50123292]
[1645208354711,0.56326352,2758.8,2757.6,0.59433902]
[1645208354712,0.00271796,2757.9,2757.6,0.59433902]
[1645208355512,0.1812,2758.8,2757.6,0.59433902]
[1645208355513,1.08816,2758.8,2757.6,0.59433902]
[1645208355714,0.90696,2758.5,2757.6,0.59433902]
[1645208355913,0.00271791,2757.9,2757.6,0.59433902]
[1645208356672,0.90696,2758.5,2757.6,0.59433902]
[1645208356873,1.08808,2758.8,2758.1,0.68644835]
[1645208357076,0.90688,2758.8,2758.1,0.68644835]
[1645208357274,6.69701701,2759.2,2758.1,0.68644835]
[1645208357275,4.7029,2759.2,2758.1,0.68644835]
[1645208357473,0.1812,2759.2,2758.1,1.59311385]
[1645208357872,0.1812,2759.2,2758.2,0.9066]
[1645208358074,5.12368702,2759.5,2758.8,0.53684671]
[1645208358373,0.88706847,2759.5,2758.8,0.53684671]
[1645208358578,0.88706847,2759.6,2758.8,0.53684671]
[1645208358773,1.0878,2759.7,2758.8,0.53684671]
[1645208358774,1.06826847,2759.7,2758.8,0.53684671]
[1645208358975,0.90661,2759.6,2758.8,0.53684671]
[1645208359176,1.79367847,2759.6,2758.1,3.2943659]
[1645208359479,0.88978634,2759.4,2758.1,0.1812]
[1645208359678,0.88978634,2759.4,2758.0,4.2237]
[1645208359679,0.90689,2759.1,2758.0,4.2237]
[1645208359878,0.90689,2759.1,2758.0,3.028]
[1645208360130,1.53561426,2758.9,2758.0,3.028]
[1645208360319,1.53561426,2758.9,2757.9,0.71473016]
[1645208360320,1.53561426,2758.9,2757.8,2.9882]
[1645208360520,5.31393,2758.8,2757.7,0.19844226]
[1645208360720,0.18377997,2758.7,2757.7,0.19844226]
[1645208361320,0.90697,2758.6,2757.7,0.86242368]
[1645208361621,1.08817,2758.7,2757.7,0.86242368]
[1645208361822,0.00257999,2758.3,2757.7,0.86242368]
[1645208362722,0.1812,2758.7,2757.7,0.84518142]
[1645208363022,0.00258001,2758.1,2757.7,0.84518142]
[1645208364060,2.52278515,2758.9,2757.7,0.84518142]
[1645208364260,0.00271795,2758.0,2757.7,0.84518142]
[1645208365260,11.0104898,2759.2,2757.7,1.14518142]
[1645208365261,2.7949,2759.2,2757.7,1.14518142]
[1645208365460,2.7949,2759.2,2757.8,0.417]
[1645208365461,0.00271795,2758.0,2757.8,0.417]
[1645208365669,0.00271795,2758.0,2757.9,0.1812]
[1645208365862,0.00271795,2758.0,2757.9,0.5982]
[1645208366264,0.00271795,2758.0,2757.9,0.8982]
[1645208366466,0.88706847,2759.3,2757.9,0.5982]
[1645208366664,0.88706847,2759.3,2758.2,0.9066469]
[1645208367063,0.88706847,2759.3,2757.9,1.1812]
[1645208367263,4.40685,2759.2,2757.9,0.1812]
[1645208367466,4.40685,2759.2,2757.5,3.81749027]
[1645208367467,0.1812,2759.1,2757.5,3.81749027]
[1645208367712,1.06826847,2759.1,2757.9,0.017195]
[1645208367911,0.90970791,2758.7,2757.9,0.68552055]
[1645208368214,1.81671791,2758.7,2757.9,0.68552055]
[1645208368415,0.90972791,2758.7,2757.9,0.68552055]
[1645208368611,1.81676261,2758.7,2757.9,0.68552055]
[1645208368815,1.20701,2758.7,2757.9,0.68552055]
[1645208369212,0.00268966,2758.4,2757.9,0.68552055]
[1645208370118,0.88706847,2759.0,2757.9,0.6845833]
[1645208370313,1.52875732,2759.2,2757.9,0.6845833]
[1645208370314,0.00268966,2758.3,2757.9,0.6845833]
[1645208370513,0.00268966,2758.3,2757.9,0.9845833]
[1645208370713,0.00268966,2758.3,2757.9,0.6845833]
[1645208370915,0.00268966,2758.3,2758.0,0.90672]
[1645208371369,0.88706847,2759.1,2758.0,0.90672]
[1645208371569,0.00251042,2758.2,2758.0,1.20672]
[1645208371766,0.00251042,2758.2,2758.0,0.90672]
[1645208371965,0.88706847,2759.1,2758.1,1.8131]
[1645208372167,0.88706847,2759.1,2758.7,0.67537841]
[1645208372568,0.88706847,2759.1,2758.3,0.9066291]
[1645208372771,1.34755732,2759.4,2758.1,1.8131]
[1645208372772,0.88706847,2759.0,2758.1,1.8131]
[1645208372967,0.02738185,2758.6,2758.2,1.3]
[1645208373167,0.02738185,2758.6,2758.2,1.0]
[1645208373368,0.02738185,2758.6,2758.2,0.3]
[1645208373568,0.02738185,2758.6,2758.4,0.90658]
[1645208373768,0.02738185,2758.6,2758.3,3.0194961]
[1645208373970,0.02738185,2758.6,2758.4,1.51743114]
[1645208374270,0.02738185,2758.6,2758.4,1.93443114]
[1645208374475,1.94984796,2759.8,2758.5,15.60063336]
[1645208374476,0.88706847,2759.5,2758.5,15.60063336]
[1645208374668,0.38137854,2760.2,2758.5,15.60063336]
[1645208374669,0.88706847,2759.7,2758.7,11.06]
[1645208374872,0.88706847,2759.8,2758.8,12.3833178]
[1645208375136,0.88706847,2759.8,2759.0,0.90624]
[1645208375325,0.88706847,2759.8,2759.0,2.52952]
[1645208375517,0.88706847,2759.9,2759.7,0.5158681]
[1645208375717,1.34755732,2760.1,2759.7,3.2341763]
[1645208375718,0.88706847,2760.1,2759.7,3.2341763]
[1645208375918,0.88706847,2760.3,2759.7,3.6511763]
[1645208376116,0.88706847,2760.4,2759.8,1.0]
[1645208376316,0.00269362,2759.9,2759.8,2.20605]
[1645208376518,0.00269362,2759.9,2759.8,1.3]
[1645208376920,0.00269362,2759.9,2759.8,3.1120188]
[1645208377218,0.88706847,2760.7,2759.8,3.5290188]
[1645208377416,0.88706847,2760.7,2760.3,0.70922274]
[1645208377617,0.89788148,2760.8,2760.3,0.70922274]
[1645208378116,0.89788148,2760.8,2760.1,1.32299]
[1645208378317,0.88706847,2760.7,2760.1,1.467915]
[1645208378520,0.01081301,2760.8,2760.1,1.467915]
[1645208378521,0.88706847,2760.8,2760.1,1.467915]
[1645208378721,0.88706847,2760.8,2760.2,0.90599]
[1645208378722,0.00270398,2760.7,2760.2,0.90599]
[1645208378965,0.00270398,2760.7,2760.2,1.90599]
[1645208379169,0.83977245,2760.9,2760.2,1.90599]
[1645208379366,0.01081432,2761.1,2760.3,0.9060019]
[1645208379566,1.34755732,2761.6,2760.8,0.61055233]
[1645208380573,1.34755732,2761.7,2760.8,0.61055233]
[1645208380770,1.91950573,2761.8,2760.8,0.61055233]
[1645208381170,0.0026908,2761.3,2760.8,0.61055233]
[1645208381769,0.0026908,2761.3,2760.8,1.51636233]
[1645208381969,0.1809,2762.0,2760.8,1.51636233]
[1645208381970,1.34755732,2762.0,2760.9,0.9057282]
[1645208382269,1.94666143,2760.6,2760.3,3.3247]
[1645208382469,1.94666143,2760.6,2760.3,0.417]
[1645208382738,1.94666143,2760.6,2760.5,0.01820446]
[1645208385440,1.94666143,2760.6,2760.5,0.01204386]
[1645208385645,5.74666143,2760.6,2760.5,0.01204386]
[1645208386042,3.15302143,2760.6,2760.5,0.01204386]
[1645208386565,2.24666143,2760.6,2760.5,0.01204386]
[1645208387962,2.24666143,2760.6,2760.5,0.00481117]
[1645208388766,1.94666143,2760.6,2760.5,0.00481117]
[1645208391521,1.94666143,2760.6,2760.5,2.81644117]
[1645208391722,1.94666143,2760.6,2760.5,3.11644117]
[1645208392124,1.94666143,2760.6,2760.5,1.00481117]
[1645208392322,1.94666143,2760.6,2760.5,0.30481117]
[1645208392521,1.94666143,2760.6,2760.5,1.30481117]
[1645208392923,1.94666143,2760.6,2760.5,0.30481117]
[1645208393325,1.94666143,2760.6,2760.5,0.01919839]
[1645208393723,1.89666143,2760.6,2760.5,0.01919839]
[1645208393988,1.89666143,2760.6,2760.5,1.01919839]
[1645208394188,1.89666143,2760.6,2760.5,1.31919839]
[1645208395791,1.89666143,2760.6,2760.5,1.50029839]
[1645208395992,1.89666143,2760.6,2760.5,1.91729839]
[1645208396191,0.00271764,2760.8,2760.6,1.81314362]
[1645208396389,2.03698102,2761.8,2760.6,1.81314362]
[1645208396390,0.89338102,2761.8,2760.6,2.41124362]
[1645208396591,0.89338102,2761.8,2761.2,0.65621942]
[1645208396894,2.1305,2762.2,2761.2,0.65621942]
[1645208396895,0.89338102,2762.2,2761.2,0.65621942]
[1645208397092,0.89338102,2762.4,2761.2,1.37321942]
[1645208397291,0.89338102,2762.4,2761.4,0.9056016]
[1645208397491,0.07565582,2762.5,2761.4,0.9056016]
[1645208397492,0.89338102,2762.3,2761.4,0.9056016]
[1645208397717,0.07565582,2762.5,2761.4,2.3865016]
[1645208397917,0.96903684,2762.5,2761.3,1.9919835]
[1645208398118,0.00271772,2761.9,2761.1,0.00188656]
[1645208398916,0.90585,2761.9,2761.1,0.58498174]
[1645208399118,0.00268806,2761.6,2761.1,0.88498174]
[1645208399317,0.00268806,2761.6,2761.1,3.78283344]
[1645208399519,0.00268806,2761.6,2761.1,2.89973826]
[1645208399717,0.00268806,2761.6,2761.1,0.00188656]
[1645208400125,0.89338102,2762.1,2761.1,0.00188656]
[1645208400321,1.49338102,2762.1,2761.1,0.00188656]
[1645208400526,1.49338102,2762.1,2760.7,0.65539793]
[1645208400527,0.0008,2761.0,2760.7,0.65539793]
[1645208400718,0.0008,2761.0,2760.6,0.00152492]
[1645208401564,0.0026881,2760.9,2760.6,0.00152492]
[1645208402265,0.0026881,2760.9,2760.5,0.01438722]
[1645208402465,0.90695,2761.0,2760.0,0.26649848]
[1645208402667,0.0026881,2760.9,2760.0,0.26649848]
[1645208402867,0.0026881,2760.9,2760.0,0.53681464]
[1645208402868,0.90618,2760.8,2760.0,0.53681464]
[1645208403267,0.3,2760.6,2759.6,6.1315]
[1645208403467,0.90643,2760.5,2759.6,0.50359576]
[1645208403870,0.1811,2760.9,2759.6,0.50359576]
[1645208404067,2.72007,2761.0,2759.6,0.50359576]
[1645208404068,0.01346403,2760.8,2759.6,0.50359576]
[1645208404468,0.01346403,2760.8,2759.6,0.80359576]
[1645208404669,0.01346403,2760.8,2759.6,0.50359576]
[1645208404868,0.90631,2760.4,2759.5,1.0]
[1645208405153,0.90631,2760.4,2759.3,1.53353912]
[1645208405355,0.90631,2760.4,2759.3,0.53353912]
[1645208405553,0.3,2760.3,2759.3,0.53353912]
[1645208405953,1.20636,2760.5,2759.6,0.6784717]
[1645208406153,0.3,2760.5,2759.6,0.6784717]
[1645208406355,2.41262,2760.6,2759.6,0.6784717]
[1645208407354,0.90629,2760.4,2759.3,1.43982912]
[1645208407556,0.3,2760.3,2759.4,0.9062685]
[1645208407953,0.3,2760.3,2759.4,1.9062685]
[1645208408557,0.3,2760.3,2759.5,0.59579042]
[1645208408755,0.92618278,2760.4,2759.5,0.59579042]
[1645208408976,0.92618278,2760.4,2759.4,1.9062685]
[1645208409377,0.92618278,2760.4,2759.4,1.0]
[1645208409776,0.92618278,2760.4,2759.3,0.53353912]
[1645208410177,0.92618278,2760.4,2759.5,0.68581972]
[1645208411079,0.01989278,2760.4,2759.5,0.68581972]
[1645208411276,0.01989278,2760.4,2759.6,0.90618]
[1645208411675,0.01989278,2760.4,2759.6,3.8]
[1645208411875,0.01989278,2760.4,2759.7,2.8122298]
[1645208412077,0.01989278,2760.4,2759.8,2.2291122]
[1645208412277,0.01989278,2760.4,2759.8,2.5291122]
[1645208412476,0.01989278,2760.4,2760.3,0.70399957]
[1645208412933,0.01989278,2760.4,2760.3,1.00399957]
[1645208413434,0.0008,2761.0,2760.3,1.00399957]
[1645208413641,0.00269226,2760.8,2760.4,0.90593]
[1645208414037,0.00269226,2760.8,2760.4,1.8118382]
[1645208414234,0.00269226,2760.8,2760.5,0.717]
[1645208414437,0.00269226,2760.8,2760.5,1.017]
[1645208414634,0.0008,2761.0,2760.6,3.5]
[1645208414837,0.00270882,2760.8,2760.7,1.417]
[1645208415036,0.00270882,2760.8,2760.7,0.417]
[1645208415237,0.00270882,2760.8,2760.7,0.717]
[1645208415436,0.00270882,2760.8,2760.7,1.717]
[1645208415634,0.0008,2761.0,2760.7,1.717]
[1645208415635,0.0008,2761.0,2760.8,0.67716196]
[1645208415834,0.0008,2761.0,2760.9,0.417]
[1645208416240,0.0008,2761.0,2760.9,0.717]
[1645208416987,0.89338102,2762.0,2760.9,1.717]
[1645208417187,2.02540378,2762.5,2761.0,3.5]
[1645208417188,0.00270889,2761.1,2761.0,3.5]
[1645208417388,0.00270889,2761.1,2761.0,2.33979384]
[1645208417587,0.01083395,2761.5,2761.1,5.0]
[1645208417787,0.01083395,2761.5,2761.2,5.217]
[1645208417987,0.01083395,2761.5,2761.2,6.61379]
[1645208418187,0.07565582,2762.5,2761.5,1.810714]
[1645208418388,0.07565582,2762.5,2761.6,0.417]
[1645208418586,0.07565582,2762.5,2761.6,1.62238]
[1645208418787,0.07565582,2762.5,2762.1,0.65069615]
[1645208418988,0.89338102,2762.8,2762.1,0.65069615]
[1645208419187,0.89338102,2762.9,2762.1,0.65069615]
[1645208419391,2.25299732,2763.1,2762.1,0.65069615]
[1645208419392,0.89338102,2762.8,2762.1,0.65069615]
[1645208419589,1.19338102,2762.8,2762.1,0.65069615]
[1645208419789,0.89338102,2762.8,2762.1,0.65069615]
[1645208419991,0.89338102,2762.9,2762.1,0.65069615]
[1645208420628,0.89338102,2763.0,2762.1,0.65069615]
[1645208420926,0.89338102,2762.9,2762.1,0.65069615]
[1645208421428,1.20544,2763.1,2762.1,0.65069615]
[1645208421429,0.89338102,2763.0,2762.1,0.65069615]
[1645208421626,0.3,2763.1,2762.6,0.69715471]
[1645208421828,0.89338102,2763.2,2762.6,0.69715471]
[1645208422029,0.01086906,2763.1,2762.6,0.69715471]
[1645208422628,0.01086906,2763.1,2762.7,3.5]
[1645208422929,2.02258102,2763.7,2762.8,1.0]
[1645208423127,0.89338102,2763.8,2762.6,1.41415471]
[1645208423330,4.25345732,2764.1,2763.3,0.70290184]
[1645208423331,0.01086898,2763.4,2763.3,0.70290184]
[1645208423530,0.01086898,2763.4,2763.3,1.41990184]
[1645208423729,0.01086898,2763.4,2763.3,3.52979144]
[1645208423974,0.01086898,2763.4,2763.3,4.52979144]
[1645208424172,0.89338102,2764.3,2763.3,4.52979144]
[1645208424379,0.00271762,2763.5,2763.4,1.0]
[1645208424578,0.00271762,2763.5,2763.4,1.417]
[1645208424974,0.00271762,2763.5,2763.1,1.8099406]
[1645208425173,0.00271762,2763.5,2762.7,4.60561]
[1645208425174,0.00271762,2763.5,2762.7,3.2126]
[1645208425375,0.01086885,2763.9,2762.3,0.417]
[1645208425376,0.1809,2763.8,2762.3,0.417]
[1645208425575,0.89338102,2763.7,2762.3,0.417]
[1645208425777,1.07699864,2763.6,2762.2,0.144789]
[1645208425975,1.20797762,2763.6,2762.2,0.144789]
[1645208426278,1.20797762,2763.6,2762.3,0.9053326]
[1645208426279,0.62279731,2763.1,2762.3,0.9053326]
[1645208426476,0.62279731,2763.1,2762.2,1.050109]
[1645208426777,0.62279731,2763.1,2761.8,0.01715727]
[1645208426976,0.00271765,2763.0,2761.8,0.01715727]
[1645208427179,0.90556,2762.8,2761.8,0.01715727]
[1645208427376,1.20556,2762.8,2761.8,0.01715727]
[1645208427641,3.50271765,2763.0,2761.8,0.92263267]
[1645208427839,0.80369731,2763.1,2761.8,0.92263267]
[1645208427840,0.62279731,2763.1,2761.8,0.92263267]
[1645208428039,0.92279731,2763.1,2761.8,0.92263267]
[1645208428240,0.92279731,2763.1,2761.8,1.21845793]
[1645208428241,0.00271769,2762.4,2761.8,1.21845793]
[1645208428441,0.00271769,2762.4,2761.8,1.2054754]
[1645208428645,0.00271769,2762.4,2761.9,1.8106956]
[1645208428845,0.00271769,2762.4,2761.9,2.1106956]
[1645208429042,0.01086911,2762.9,2761.9,2.1106956]
[1645208429341,0.0027177,2762.2,2761.9,3.1106956]
[1645208429543,0.0027177,2762.2,2761.9,2.1106956]
[1645208429844,0.0027177,2762.2,2762.0,1.0]
[1645208430042,0.0027177,2762.2,2761.9,4.0161056]
[1645208430343,0.90539,2763.1,2761.9,4.0161056]
[1645208430546,0.00261256,2762.2,2762.0,0.3]
[1645208430742,0.00261256,2762.2,2762.1,0.90537]
[1645208431046,0.00261256,2762.2,2762.1,1.417]
[1645208431242,0.00261256,2762.2,2762.1,0.417]
[1645208431483,0.61925766,2763.0,2762.1,0.417]
[1645208431680,0.00261255,2762.3,2762.1,0.417]
[1645208431877,0.00261255,2762.3,2761.7,0.00331875]
[1645208432177,0.00261255,2762.3,2761.8,0.9055061]
[1645208432577,4.11925766,2763.0,2761.8,0.9055061]
[1645208432777,0.91925766,2763.0,2761.8,0.9055061]
[1645208432977,0.00261256,2762.2,2761.9,0.62317033]
[1645208433176,0.00261256,2762.2,2761.9,0.92317033]
[1645208433387,0.00261256,2762.2,2761.7,0.144819]
[1645208433578,0.00261256,2762.2,2762.0,0.01707894]
[1645208434179,3.6809,2762.9,2762.0,0.01707894]
[1645208434180,0.00266017,2762.1,2762.0,0.01707894]
[1645208434984,0.90568,2762.7,2762.0,0.01707894]
[1645208435223,0.00266016,2762.2,2762.0,0.01707894]
[1645208435822,0.50393354,2762.1,2762.0,0.01707894]
[1645208436623,0.50393354,2762.1,2762.0,0.01190255]
[1645208437923,0.3027177,2762.2,2762.0,0.01190255]
[1645208438223,0.0027177,2762.2,2762.0,0.01190255]
[1645208438635,1.95116917,2762.6,2762.1,0.00140919]
[1645208438636,1.9403,2762.6,2762.1,0.00140919]
[1645208438891,0.68967753,2762.5,2762.1,0.00140919]
[1645208439078,0.0027177,2762.2,2761.1,0.3283675]
[1645208439478,0.0027177,2762.2,2761.1,0.6283675]
[1645208439880,0.68967753,2762.5,2761.1,1.6283675]
[1645208440085,0.68967753,2762.5,2761.2,0.417]
[1645208440283,0.00271773,2761.8,2761.2,1.11797713]
[1645208440484,0.00271773,2761.8,2761.2,2.32366963]
[1645208440983,0.68967753,2762.5,2761.2,3.32366963]
[1645208441387,1.9403,2762.6,2761.3,0.90555]
[1645208441388,0.00268864,2761.6,2761.3,0.90555]
[1645208441583,0.00268864,2761.6,2761.4,3.4335177]
[1645208441786,0.00268864,2761.6,2761.5,0.3]
[1645208442083,0.00268864,2761.6,2761.5,12.777]
[1645208442282,1.8679,2763.1,2761.9,0.90539]
[1645208442483,0.01075294,2762.1,2762.0,1.06541982]
[1645208442734,0.01075294,2762.1,2762.0,0.717]
[1645208442930,0.01075294,2762.1,2762.0,1.717]
[1645208443331,0.01075294,2762.1,2761.9,1.8107]
[1645208443532,3.5,2763.0,2762.3,0.00120846]
[1645208443533,0.89336039,2762.8,2762.3,0.00120846]
[1645208443732,0.01075284,2762.6,2762.3,0.01768352]
[1645208444133,0.1809,2762.5,2762.3,0.01768352]
[1645208444333,0.1809,2762.5,2762.3,8.352e-05]
[1645208444533,0.67160408,2761.9,2760.8,2.8678]
[1645208444734,0.67160408,2761.9,2760.8,0.9058241]
[1645208445434,0.67160408,2761.9,2760.9,0.90578]
[1645208445636,0.67160408,2761.9,2760.9,1.20578]
[1645208446135,0.0025139,2761.6,2760.9,0.3]
[1645208446579,0.0025139,2761.6,2761.1,0.90573]
[1645208447176,0.54097816,2761.7,2760.9,1.3]
[1645208447377,0.54097816,2761.7,2761.0,0.91391403]
[1645208447378,0.00251391,2761.5,2761.0,0.91391403]
[1645208447779,0.00251391,2761.5,2761.0,0.00815393]
[1645208448277,0.54097816,2761.7,2761.0,0.00815393]
[1645208448476,0.00251391,2761.4,2760.5,3.7249]
[1645208448677,0.00251391,2761.4,2760.5,4.0249]
[1645208448876,0.00251391,2761.4,2760.8,0.144869]
[1645208449080,0.00251391,2761.4,2760.5,2.7249]
[1645208449276,0.00251391,2761.4,2760.4,4.4463]
[1645208449477,2.65305816,2761.7,2760.4,5.3522868]
[1645208449677,0.00252514,2761.2,2760.4,5.3522868]
[1645208450721,0.84097816,2761.7,2760.5,1.0]
[1645208450922,0.00252488,2761.2,2760.5,1.0]
[1645208451523,0.00252488,2761.2,2760.5,3.71754]
[1645208451722,0.00252488,2761.2,2760.6,0.9059093]
[1645208451922,1.07517687,2762.2,2760.6,1.3229093]
[1645208452121,0.89407687,2762.2,2760.7,0.1809]
[1645208452322,0.00252493,2761.2,2760.7,1.1809]
[1645208452521,0.00252493,2761.2,2760.7,12.2409]
[1645208452825,0.00252493,2761.2,2761.1,0.9057248]
[1645208453026,0.00252493,2761.2,2761.1,1.0866248]
[1645208453223,0.00252493,2761.2,2761.1,0.1809]
[1645208453525,0.00252396,2761.2,2761.0,0.1809]
[1645208453724,0.00252396,2761.2,2760.9,0.3]
[1645208453976,0.00252396,2761.2,2760.8,0.1809]
[1645208454377,0.01009465,2761.6,2760.8,0.1809]
[1645208454378,0.56210878,2761.6,2760.8,0.1809]
[1645208454577,0.00252404,2761.2,2760.7,1.22494778]
[1645208455378,0.57220362,2761.6,2760.9,0.90579]
[1645208455379,0.56210878,2761.6,2760.9,0.90579]
[1645208455785,0.00252396,2761.2,2760.9,0.90579]
[1645208456182,0.00252396,2761.2,2760.8,0.9058229]
[1645208456583,0.56210878,2761.6,2760.8,0.9058229]
[1645208456986,0.00252412,2761.2,2760.8,0.9058229]
[1645208457829,0.56210878,2761.6,2760.8,0.9058229]
[1645208458237,0.00252412,2761.2,2761.1,0.01898346]
[1645208459033,3.5,2761.8,2761.1,0.01898346]
[1645208459232,1.20584,2761.9,2761.1,0.01898346]
[1645208459432,0.00252421,2761.3,2761.1,0.01898346]
[1645208460332,0.80584,2761.9,2761.1,0.01898346]
[1645208460534,0.00252419,2761.3,2761.1,0.01898346]
[1645208461372,0.90649648,2762.2,2761.1,0.92471346]
[1645208461373,0.00071648,2762.2,2761.1,0.92471346]
[1645208461573,0.70814063,2762.2,2761.1,1.52842922]
[1645208461772,0.00252419,2761.3,2761.1,3.21691206]
[1645208462373,0.00252419,2761.3,2761.2,1.0]
[1645208462574,0.00252419,2761.3,2761.2,1.717]
[1645208462774,0.00071648,2762.2,2761.5,0.90554]
[1645208463076,0.01009523,2761.8,2761.5,1.20554]
[1645208463276,0.01009523,2761.8,2761.6,0.5979]
[1645208463475,0.00071648,2762.2,2761.7,16.06]
[1645208463674,0.00071648,2762.2,2761.8,0.5979]
[1645208463878,0.00071648,2762.2,2761.9,0.90519]
[1645208464074,0.00071648,2762.2,2762.0,0.5979]
[1645208464278,0.00071648,2762.2,2762.0,1.28834167]
[1645208464476,0.00071648,2762.2,2762.0,1.5979]
[1645208465725,0.00071648,2762.2,2762.1,2.11054]
[1645208465933,0.00071648,2762.2,2762.1,0.417]
[1645208466125,0.00071648,2762.2,2762.0,1.0]
[1645208466330,0.00071648,2762.2,2761.7,0.417]